bitfinex-derivatives/quotes_SOLF0:USTF0_20260104
["timestamp","ask_amount","ask_price","bid_price","bid_amount"]
[1767511621906,0.05207037,133.72,133.69,4.07507423]
[1767511625617,149.9460716,133.82,133.69,4.07507423]
[1767511625618,0.92785975,133.76,133.69,4.07507423]
[1767511626710,0.04940263,133.74,133.69,4.07507423]
[1767511628718,0.04940263,133.74,133.69,10.80997423]
[1767511629019,0.04940263,133.74,133.7,4.02042161]
[1767511629418,0.04940263,133.74,133.7,10.75482161]
[1767511629618,0.04940263,133.74,133.7,4.02042161]
[1767511639119,0.04940263,133.74,133.7,4.79367292]
[1767511639628,6.7307,133.78,133.7,4.79367292]
[1767511639820,5.48337419,133.77,133.72,4.02042161]
[1767511640016,131.96115703,133.82,133.72,4.79367292]
[1767511640017,1.02933275,133.81,133.72,4.79367292]
[1767511640323,5.48452946,133.8,133.74,0.77325131]
[1767511640524,0.04891621,133.78,133.76,4.06997304]
[1767511640716,18.01101965,133.82,133.77,4.02042161]
[1767511641216,1.02933275,133.85,133.77,4.02042161]
[1767511641417,1.02933275,133.85,133.79,4.02042161]
[1767511641620,0.05444402,133.83,133.81,0.05458453]
[1767511641918,1.02933275,133.87,133.81,0.05458453]
[1767511642118,1.02933275,133.87,133.8,4.02042161]
[1767511643031,0.05000524,133.85,133.82,0.05506035]
[1767511645334,1.07933799,133.85,133.78,4.02042161]
[1767511646329,1.07933799,133.85,133.8,0.05716446]
[1767511651628,7.80663799,133.85,133.8,0.05716446]
[1767511659434,7.80663799,133.85,133.8,4.05774014]
[1767511659435,1.07933799,133.85,133.8,4.05774014]
[1767511659733,1.02516783,133.89,133.81,4.00057568]
[1767511659934,1.07517307,133.91,133.83,4.00057568]
[1767511660124,1.07517307,133.91,133.84,4.00057568]
[1767511660327,1.07517307,133.93,133.84,4.00057568]
[1767511660724,0.05340212,133.9,133.87,0.05050576]
[1767511663743,0.05340212,133.9,133.87,4.05108144]
[1767511664333,0.05340212,133.9,133.87,0.05050576]
[1767511666236,1.12857519,133.9,133.83,4.00057568]
[1767511667436,1.12857519,133.9,133.85,0.05517879]
[1767511667839,7.85327519,133.9,133.85,0.05517879]
[1767511676045,1.07517307,133.89,133.85,0.05517879]
[1767511677255,1.07517307,133.88,133.85,0.05517879]
[1767511677447,1.07517307,133.88,133.82,88.32]
[1767511678244,1.07517307,133.88,133.82,92.32057568]
[1767511678553,0.04828361,133.86,133.84,0.04922716]
[1767511680341,1.07517307,133.88,133.84,0.04922716]
[1767511681352,0.05657535,133.87,133.84,0.04922716]
[1767511686061,0.05657535,133.87,133.84,4.11541042]
[1767511686359,7.79842724,133.9,133.84,4.11541042]
[1767511686659,1.07392724,133.89,133.84,4.11541042]
[1767511688661,0.04990083,133.88,133.84,4.11541042]
[1767511699073,6.77560083,133.88,133.84,4.11541042]
[1767511707383,0.04990083,133.88,133.84,4.11541042]
[1767511717687,1.07457196,133.92,133.84,4.11541042]
[1767511718000,5.49429849,133.91,133.86,3.79973733]
[1767511718291,1.07457196,133.92,133.86,3.79973733]
[1767511718491,5.4934909,133.91,133.86,3.79973733]
[1767511718680,1.07457196,133.92,133.86,3.79973733]
[1767511718986,12.2171391,133.91,133.87,3.85242851]
[1767511719184,6.724,133.91,133.87,3.85242851]
[1767511729000,7.84847279,133.91,133.87,0.05269118]
[1767511732506,1.12447279,133.9,133.87,0.05269118]
[1767511734107,6.724,133.91,133.87,0.05269118]
[1767511736500,7.84847279,133.91,133.87,0.05269118]
[1767511737208,7.84777279,133.93,133.87,3.85242851]
[1767511737407,5.46748981,133.92,133.87,3.85242851]
[1767511737610,7.84777279,133.93,133.87,3.85242851]
[1767511737803,5.46748981,133.92,133.87,3.85242851]
[1767511738001,7.84777279,133.93,133.87,3.85242851]
[1767511738200,5.46748981,133.92,133.87,3.85242851]
[1767511738396,7.84777279,133.93,133.87,3.85242851]
[1767511738600,6.59193963,133.92,133.87,3.85242851]
[1767511738811,1.12447279,133.92,133.87,3.85242851]
[1767511739602,6.59223822,133.91,133.87,0.05269118]
[1767511739919,1.12447279,133.91,133.87,0.05269118]
[1767511742313,1.12474956,133.9,133.87,0.05269118]
[1767511755536,1.07205838,133.89,133.83,10.71283298]
[1767511755739,1.07205838,133.89,133.83,3.98513298]
[1767511756641,1.07205838,133.89,133.85,0.05574201]
[1767511764445,104.5748,133.94,133.85,0.05574201]
[1767511764446,1.07205838,133.91,133.85,4.04087499]
[1767511764640,5.47230928,133.9,133.85,3.98513298]
[1767511764841,1.07205838,133.91,133.87,0.05174326]
[1767511765041,5.47202799,133.9,133.87,0.05174326]
[1767511765240,1.07205838,133.91,133.87,0.05174326]
[1767511765545,5.47204338,133.9,133.87,0.05174326]
[1767511765746,1.07205838,133.91,133.87,0.05174326]
[1767511766047,6.54410176,133.9,133.87,0.05174326]
[1767511766344,1.07205838,133.9,133.87,0.05174326]
[1767511770249,1.12429263,133.9,133.87,0.05174326]
[1767511770647,1.12429263,133.9,133.84,6.7273]
[1767511770854,1.12429263,133.9,133.84,10.4231146]
[1767511771450,0.05223425,133.9,133.85,3.6958146]
[1767511771654,1.0727673,133.95,133.87,3.6958146]
[1767511771843,5.47106516,133.94,133.89,3.6958146]
[1767511772046,1.0727673,133.95,133.89,3.6958146]
[1767511772554,1.0727673,133.95,133.88,88.26]
[1767511772744,1.1264194,133.93,133.91,0.05325973]
[1767511779158,1.1264194,133.93,133.88,88.26]
[1767511780263,1.1264194,133.93,133.89,0.04972464]
[1767511784361,7.8494194,133.93,133.89,0.04972464]
[1767511786567,1.07289141,133.92,133.89,0.04972464]
[1767511807281,0.05352799,133.93,133.89,4.12593321]
[1767511808283,0.05352799,133.93,133.9,88.24]
[1767511813388,0.05352799,133.93,133.91,88.24]
[1767511814393,1.12679562,133.93,133.91,63.6891]
[1767511814604,1.12679562,133.93,133.89,88.28972464]
[1767511816709,0.05352799,133.93,133.89,92.36593321]
[1767511816912,1.07326763,133.95,133.9,4.07620857]
[1767511817993,0.05352645,133.94,133.9,4.07620857]
[1767511818497,1.07326763,133.97,133.9,4.07620857]
[1767511818703,5.45944608,133.96,133.9,4.07620857]
[1767511818893,1.07326763,133.97,133.9,4.07620857]
[1767511819203,5.45955946,133.96,133.9,4.07620857]
[1767511819393,1.07326763,133.97,133.9,4.07620857]
[1767511819593,1.07326763,133.95,133.92,0.05636018]
[1767511822596,7.79446763,133.97,133.92,0.05636018]
[1767511822797,5.45483994,133.96,133.92,0.05636018]
[1767511822999,7.79446763,133.97,133.92,0.05636018]
[1767511823303,5.45483994,133.96,133.92,0.05636018]
[1767511823507,1.07326763,133.97,133.92,4.13256875]
[1767511823706,5.45364309,133.96,133.92,4.13256875]
[1767511823905,1.07326763,133.97,133.92,4.13256875]
[1767511824105,5.45527715,133.96,133.92,4.13256875]
[1767511824399,1.07326763,133.97,133.92,4.13256875]
[1767511824605,1.07326763,133.97,133.92,4.90350818]
[1767511827405,7.79346763,133.99,133.93,4.07620857]
[1767511830911,1.07129137,133.97,133.92,0.05636018]
[1767511831112,1.07129137,134.0,133.92,4.77454494]
[1767511831409,1.07129137,133.98,133.92,4.00360551]
[1767511831606,1.07129137,134.0,133.94,3.99832988]
[1767511831911,1.07129137,133.99,133.94,3.99832988]
[1767511832108,7.79129137,133.99,133.94,3.99832988]
[1767511832410,7.79129137,133.99,133.94,0.05108455]
[1767511832613,1.07185946,134.02,133.95,4.03946091]
[1767511832812,1.07185946,134.0,133.97,0.04826905]
[1767511834713,1.07185946,133.99,133.92,4.81040034]
[1767511835913,1.07185946,133.99,133.94,0.05276467]
[1767511837514,0.05343478,133.98,133.94,0.05276467]
[1767511845721,1.07702519,133.98,133.94,0.05276467]
[1767511852130,1.02359041,133.97,133.94,0.05276467]
[1767511853320,1.02359041,133.96,133.9,4.03946091]
[1767511854419,0.0499752,133.94,133.92,0.05492678]
[1767511860131,1.07999222,133.94,133.88,4.03946091]
[1767511861132,1.07999222,133.94,133.9,0.04820525]
[1767511861929,7.80249222,133.94,133.9,0.04820525]
[1767511862435,1.03001702,133.93,133.9,0.04820525]
[1767511864430,1.03001702,133.92,133.9,0.04820525]
[1767511864626,1.03001702,133.92,133.86,4.08600088]
[1767511865729,0.04964895,133.9,133.88,0.05695273]
[1767511867938,1.07966597,133.9,133.88,0.05695273]
[1767511868539,1.07966597,133.9,133.84,4.08600088]
[1767511869643,1.07966597,133.9,133.86,0.04923088]
[1767511873940,0.04964895,133.9,133.86,0.04923088]
[1767511876541,0.04964895,133.9,133.86,4.13523176]
[1767511880049,1.03001702,133.92,133.87,4.08600088]
[1767511881154,0.05440012,133.91,133.87,4.08600088]
[1767511882854,0.05440012,133.91,133.87,10.81190088]
[1767511883054,1.03001702,133.94,133.88,4.08600088]
[1767511884048,0.05228349,133.92,133.9,0.05330569]
[1767511892156,95.98755982,133.95,133.9,4.08235552]
[1767511892563,7.74755982,133.95,133.9,4.08235552]
[1767511893261,7.74755982,133.95,133.9,0.05330569]
[1767511893262,1.02626494,133.94,133.9,0.05330569]
[1767511895162,1.02626494,133.99,133.91,4.08543669]
[1767511896160,1.02626494,133.99,133.94,4.13286227]
[1767511905881,1.02626494,133.99,133.94,0.04742558]
[1767511909186,1.02626494,133.98,133.94,0.04742558]
[1767511909590,1.02626494,133.96,133.9,4.08543669]
[1767511910593,1.02626494,133.96,133.92,0.04736586]
[1767511913991,6.77851619,133.97,133.92,4.13280255]
[1767511914296,1.02626494,133.96,133.92,0.04736586]
[1767511919292,1.02626494,133.95,133.89,6.7245]
[1767511919497,1.02626494,133.95,133.88,4.08543669]
[1767511920498,1.03372252,133.93,133.9,0.05460059]
[1767511929400,0.98068764,133.91,133.86,3.83635211]
[1767511930609,0.05227184,133.9,133.87,0.05021548]
[1767511932909,1.03295948,133.9,133.87,0.05021548]
[1767511933301,0.93047216,133.88,133.8,10.56555211]
[1767511933610,0.93047216,133.88,133.81,3.83635211]
[1767511934408,0.05306745,133.86,133.83,0.05717744]
[1767511943017,0.98353961,133.86,133.83,0.05717744]
[1767511967550,0.98353961,133.86,133.79,4.70250424]
[1767511968951,0.93372898,133.85,133.81,0.05518888]
[1767511976862,0.05306745,133.86,133.81,4.75769312]
[1767511993965,0.05306745,133.86,133.81,3.98534284]
[1767512000470,7.71312826,133.86,133.81,3.98534284]
[1767512000974,0.93356081,133.85,133.81,0.05518888]
[1767512001290,7.66066081,133.85,133.81,0.05518888]
[1767512002381,0.93356081,133.85,133.81,0.05518888]
[1767512005287,0.05306745,133.86,133.81,3.91324139]
[1767512013495,6.77956745,133.86,133.81,3.91324139]
[1767512017895,6.727,133.85,133.81,3.91324139]
[1767512019894,7.66534145,133.85,133.81,0.05518888]
[1767512020098,6.7275,133.84,133.81,0.05518888]
[1767512021395,0.93834145,133.85,133.81,0.05518888]
[1767512038597,0.93834145,133.84,133.81,0.05518888]
[1767512049919,0.98825201,133.86,133.81,0.05518888]
[1767512056229,0.91934996,133.85,133.81,0.05518888]
[1767512058127,7.64634996,133.85,133.81,0.05518888]
[1767512063840,6.7275,133.84,133.81,0.05518888]
[1767512066227,7.44863953,133.84,133.81,0.05518888]
[1767512068326,6.728,133.83,133.81,0.05518888]
[1767512068532,0.68417204,133.82,133.76,4.0149389]
[1767512069623,0.05445213,133.8,133.78,0.05684011]
[1767512072927,0.62086339,133.8,133.74,91.99173377]
[1767512073123,0.62086339,133.8,133.75,3.69173377]
[1767512074236,0.62086339,133.8,133.76,0.05344659]
[1767512075740,0.05445213,133.8,133.76,3.74518036]
[1767512080343,0.45135185,133.86,133.8,3.69173377]
[1767512081455,0.45135185,133.86,133.82,0.05210535]
[1767512082644,0.04841365,133.85,133.82,0.05210535]
[1767512105764,0.04841365,133.85,133.82,4.2615227]
[1767512106758,6.8273187,133.88,133.82,4.2615227]
[1767512107971,0.04870048,133.86,133.82,4.2615227]
[1767512110669,0.09527023,133.86,133.82,0.05210535]
[1767512129086,6.82177023,133.86,133.82,0.05210535]
[1767512132488,0.04870048,133.86,133.77,3.500863]
[1767512132793,5.47837,133.85,133.77,3.500863]
[1767512132993,5.47837,133.84,133.77,3.500863]
[1767512133291,6.728,133.83,133.77,3.500863]
[1767512133482,0.04831237,133.81,133.79,0.05170569]
[1767512160412,0.04831237,133.81,133.75,3.27144324]
[1767512161213,0.04831237,133.81,133.75,10.00334324]
[1767512161513,0.04831237,133.81,133.77,0.053834]
[1767512162513,0.04831237,133.81,133.77,3.32527724]
[1767512164829,104.6149,133.89,133.79,3.27144324]
[1767512165014,5.46299289,133.88,133.8,3.27144324]
[1767512165322,5.46299289,133.87,133.8,3.27144324]
[1767512165623,104.6149,133.89,133.8,3.27144324]
[1767512165821,0.05245641,133.85,133.82,0.05730557]
[1767512178929,6.77945641,133.85,133.82,0.05730557]
[1767512179629,0.05245641,133.85,133.82,3.32874881]
[1767512181230,192.9183,133.91,133.82,3.32874881]
[1767512181434,5.46677244,133.9,133.82,3.27144324]
[1767512181628,5.46713271,133.89,133.82,3.27144324]
[1767512181936,12.19218041,133.88,133.82,3.27144324]
[1767512182125,6.7255,133.88,133.82,3.27144324]
[1767512182429,0.05087639,133.86,133.84,0.04735901]
[1767512188237,0.05087639,133.86,133.8,11.2075619]
[1767512188432,0.05087639,133.86,133.81,3.27144324]
[1767512188936,0.05087639,133.86,133.81,10.00024324]
[1767512189144,6.7254,133.89,133.82,3.27144324]
[1767512189637,88.32,133.91,133.83,3.27144324]
[1767512189843,104.5795,133.93,133.83,3.27144324]
[1767512190035,0.05019834,133.89,133.87,0.05473617]
[1767512191535,6.7238,133.92,133.87,3.16835397]
[1767512192739,0.0501856,133.91,133.87,3.16835397]
[1767512193742,0.0501856,133.91,133.87,3.94020459]
[1767512195950,0.0501856,133.91,133.88,3.09717844]
[1767512200149,6.7227,133.94,133.88,3.09717844]
[1767512201453,0.04924221,133.92,133.88,3.09717844]
[1767512201654,0.04924221,133.92,133.87,0.82658679]
[1767512201655,0.04924221,133.92,133.89,3.86902906]
[1767512201954,6.7227,133.94,133.89,3.86902906]
[1767512202750,6.7215,133.96,133.89,3.86902906]
[1767512202958,0.05422844,133.94,133.91,3.92474221]
[1767512203150,193.55865062,134.0,133.92,3.09717844]
[1767512203552,192.7868,134.0,133.92,3.09717844]
[1767512203760,6.7207,133.98,133.92,3.09717844]
[1767512203947,6.7207,133.98,133.93,3.09717844]
[1767512204142,0.02516697,133.97,133.94,0.05072011]
[1767512205354,0.02516697,133.97,133.94,3.14789855]
[1767512205756,6.7197,134.0,133.94,3.14789855]
[1767512206254,6.72,133.99,133.94,3.14789855]
[1767512211257,7.49185062,133.99,133.94,0.05072011]
[1767512215165,6.7193,134.01,133.94,3.14789855]
[1767512215366,88.26,134.03,133.95,3.09717844]
[1767512215771,88.26,134.03,133.98,0.04955769]
[1767512216867,0.77185062,134.01,133.94,3.09717844]
[1767512217067,192.7643,134.03,133.94,3.09717844]
[1767512217272,0.77185062,134.02,133.94,3.09717844]
[1767512217473,7.49035062,134.02,133.94,3.09717844]
[1767512218075,7.49035062,134.02,133.97,0.05111454]
[1767512218076,0.04955769,133.99,133.97,0.05111454]
[1767512218272,0.04955769,133.99,133.92,3.09717844]
[1767512218465,0.77185062,133.98,133.9,3.09717844]
[1767512219274,0.77185062,133.98,133.93,0.05465164]
[1767512219470,0.0479137,133.95,133.93,0.05465164]
[1767512220179,0.77185062,133.98,133.93,3.08808935]
[1767512221075,0.05275853,133.97,133.93,3.08808935]
[1767512225781,0.05275853,133.97,133.93,0.05465164]
[1767512226480,0.77185062,133.96,133.93,0.05465164]
[1767512226885,7.49335062,133.96,133.93,0.05465164]
[1767512228387,0.05275853,133.97,133.93,3.08808935]
[1767512229090,0.77185062,134.02,133.94,3.03343771]
[1767512229384,0.77185062,134.02,133.95,3.03343771]
[1767512230086,0.77185062,134.02,133.97,0.05095752]
[1767512230379,6.7188,134.02,133.97,3.08439523]
[1767512232083,7.48945062,134.04,133.97,3.08439523]
[1767512232693,6.718,134.03,133.97,3.08439523]
[1767512235399,7.49045062,134.02,133.97,3.08439523]
[1767512236591,6.7186,134.02,133.97,3.08439523]
[1767512236781,6.7177,134.04,133.97,3.08439523]
[1767512236986,7.48955062,134.04,133.97,3.08439523]
[1767512237384,6.718,134.03,133.97,3.08439523]
[1767512239594,0.77185062,134.04,133.97,3.08439523]
[1767512239895,88.22,134.05,133.97,3.08439523]
[1767512240088,0.77185062,134.04,133.97,3.08439523]
[1767512240792,7.48935062,134.04,133.97,3.08439523]
[1767512242093,6.7175,134.04,133.97,3.08439523]
[1767512242391,7.48935062,134.04,133.97,3.08439523]
[1767512243393,6.7175,134.04,133.97,3.08439523]
[1767512243690,7.48935062,134.04,133.97,3.08439523]
[1767512248093,6.7175,134.04,133.97,3.08439523]
[1767512248396,7.48935062,134.04,133.97,3.08439523]
[1767512248796,192.6747,134.07,133.99,3.03343771]
[1767512248797,6.717,134.05,133.99,3.03343771]
[1767512248992,6.717,134.05,134.01,0.04882236]
[1767512254203,96.11998178,134.07,134.01,0.04882236]
[1767512254904,94.9163,134.07,134.01,0.04882236]
[1767512256801,94.9163,134.07,134.01,2.9287247]
[1767512257608,6.7152,134.09,134.02,2.87990234]
[1767512257903,6.7152,134.09,134.04,0.05433597]
[1767512260208,1.20368178,134.09,134.0,2.87990234]
[1767512261397,6.76362202,134.06,134.03,0.056419]
[1767512262403,0.04712202,134.06,133.98,2.87990234]
[1767512262602,89.38368178,134.07,133.98,2.87990234]
[1767512263606,89.38368178,134.07,134.01,0.05589435]
[1767512263808,0.05091841,134.05,134.01,0.05589435]
[1767512264908,6.76811841,134.05,134.01,0.05589435]
[1767512266406,0.05091841,134.05,134.01,0.05589435]
[1767512268706,88.18,134.07,134.01,2.93579669]
[1767512269210,94.896,134.07,134.01,0.05589435]
[1767512269816,0.05683034,134.05,134.01,0.05589435]
[1767512273016,88.18,134.08,134.01,2.93579669]
[1767512273921,94.8957,134.08,134.01,2.93579669]
[1767512280708,7.91968178,134.07,134.01,0.05589435]
[1767512282322,6.7166,134.06,134.01,0.05589435]
[1767512284420,6.717,134.05,134.01,0.05589435]
[1767512284814,7.92068178,134.05,133.97,9.16569531]
[1767512285412,6.7175,134.04,133.97,2.44519531]
[1767512285826,0.04861667,134.02,133.99,0.05384705]
[1767512289921,0.04861667,134.02,133.95,2.44519531]
[1767512290929,6.719,134.01,133.95,2.44519531]
[1767512291334,6.719,134.01,133.97,0.05553816]
[1767512292029,0.04861667,134.02,133.97,0.05553816]
[1767512294028,6.76711667,134.02,133.97,0.05553816]
[1767512297233,12.16526209,134.01,133.97,0.05553816]
[1767512297529,6.7191,134.01,133.97,0.05553816]
[1767512298131,6.7195,134.0,133.97,0.05553816]
[1767512298533,0.04861667,134.02,133.97,0.05553816]
[1767512298719,6.76741667,134.02,133.97,0.05553816]
[1767512308034,6.76741667,134.02,133.97,2.50073347]
[1767512308242,0.04861667,134.02,133.97,2.50073347]
[1767512313944,6.76711667,134.02,133.97,2.50073347]
[1767512319845,0.04861667,134.02,133.97,2.50073347]
[1767512320051,0.04861667,134.02,133.97,0.82613879]
[1767512320239,0.04861667,134.02,133.98,2.31840022]
[1767512321743,88.2,134.05,133.98,2.31840022]
[1767512322952,0.05372742,134.03,134.0,2.36755852]
[1767512337660,6.77172742,134.03,134.0,0.0491583]
[1767512342469,6.7185,134.02,133.96,2.10443692]
[1767512343551,6.7185,134.02,133.98,0.05361827]
[1767512344662,7.48960063,134.01,133.98,0.05361827]
[1767512347874,7.48960063,134.01,133.94,90.28443692]
[1767512349072,7.48960063,134.01,133.96,0.04867162]
[1767512349574,0.05267164,134.0,133.96,0.04867162]
[1767512356572,0.05267164,134.0,133.96,2.15310854]
[1767512356972,0.05267164,134.0,133.96,2.92370917]
[1767512357175,6.7182,134.03,133.97,2.10443692]
[1767512357376,6.7173,134.05,133.97,2.10443692]
[1767512357565,5.45881844,134.04,133.97,2.10443692]
[1767512357766,5.45881844,134.03,133.97,2.10443692]
[1767512357971,6.7174,134.04,133.97,2.10443692]
[1767512358172,0.05045992,134.02,133.99,0.05693505]
[1767512383997,6.76885992,134.02,133.99,0.05693505]
[1767512384203,0.05045992,134.02,133.96,1.89411077]
[1767512384403,5.45604186,134.01,133.96,1.89411077]
[1767512384598,6.7196,134.0,133.94,1.89411077]
[1767512384901,105.71609689,134.02,133.94,1.89411077]
[1767512385097,5.4555914,134.01,133.94,1.89411077]
[1767512385308,0.05723689,133.99,133.94,1.89411077]
[1767512386009,6.77723689,133.99,133.94,1.89411077]
[1767512386408,6.77723689,133.99,133.95,0.04983611]
[1767512392418,6.7205,133.98,133.95,0.04983611]
[1767512395314,6.7205,133.98,133.92,1.89411077]
[1767512396422,6.7205,133.98,133.94,0.05728822]
[1767512411434,104.59243689,133.99,133.9,90.14209823]
[1767512411623,5.44453873,133.98,133.9,1.96209823]
[1767512411823,88.22,133.97,133.9,1.96209823]
[1767512412628,0.04806094,133.95,133.89,17.88344776]
[1767512412828,0.04806094,133.95,133.88,1.96209823]
[1767512413632,0.04806094,133.95,133.9,0.05345899]
[1767512414934,6.77006094,133.95,133.9,0.05345899]
[1767512416833,6.7225,133.94,133.9,0.05345899]
[1767512417637,0.04806094,133.95,133.9,2.01555722]
[1767512418342,6.76996094,133.95,133.9,2.01555722]
[1767512420834,6.76996094,133.95,133.9,0.05345899]
[1767512422433,6.7226,133.94,133.9,0.05345899]
[1767512422639,0.04806094,133.95,133.9,0.05345899]
[1767512423846,6.7231,133.93,133.9,0.05345899]
[1767512431454,6.7226,133.94,133.9,1.94385721]
[1767512442160,6.7226,133.94,133.9,0.05345899]
[1767512446867,0.04806094,133.95,133.9,1.8171009]
[1767512447257,0.77142039,133.99,133.92,1.76364191]
[1767512447465,5.44380422,133.98,133.92,1.76364191]
[1767512447768,0.77142039,133.99,133.92,1.76364191]
[1767512447970,5.44376791,133.98,133.92,1.76364191]
[1767512448165,5.44441065,133.97,133.92,1.76364191]
[1767512448362,0.05341088,133.96,133.93,0.05110968]
[1767512469886,0.05341088,133.96,133.93,1.80711046]
[1767512470087,0.77142039,134.0,133.93,1.80711046]
[1767512470889,0.77142039,134.0,133.94,1.75600078]
[1767512471087,0.04781228,133.98,133.94,1.75600078]
[1767512481904,104.506,134.03,133.95,1.75600078]
[1767512481905,0.77142039,134.03,133.95,1.75600078]
[1767512482909,6.7185,134.02,133.96,1.75600078]
[1767512483111,0.05004047,134.0,133.98,0.0513568]
[1767512501520,0.05004047,134.0,133.98,1.73146006]
[1767512501718,1.20422951,134.06,133.98,1.73146006]
[1767512502025,206.38474554,134.08,133.98,1.73146006]
[1767512502321,206.38474554,134.08,133.98,1.68010326]
[1767512502723,206.38474554,134.08,134.02,0.05382365]
[1767512502922,6.717,134.05,134.02,0.05382365]
[1767512503420,6.77153525,134.05,134.02,0.05382365]
[1767512504828,6.77153525,134.05,133.98,1.68010326]
[1767512505925,6.77153525,134.05,134.0,0.05005958]
[1767512526532,6.77153525,134.05,134.0,1.68855413]
[1767512526733,0.05453525,134.05,134.0,1.68855413]
[1767512527538,0.05453525,134.05,134.0,0.05005958]
[1767512528938,6.7174,134.04,134.0,0.05005958]
[1767512533246,0.05453525,134.05,134.0,1.68855413]
[1767512541655,0.05453525,134.05,134.0,8.40775413]
[1767512541858,19.23141603,134.08,134.01,1.63849455]
[1767512542048,5.4574678,134.07,134.01,1.63849455]
[1767512542250,6.7147,134.1,134.04,1.63849455]
[1767512542452,5.45650133,134.09,134.04,1.63849455]
[1767512542657,6.7147,134.1,134.04,1.63849455]
[1767512542860,5.45650133,134.09,134.05,0.05186809]
[1767512543051,6.7147,134.1,134.05,0.05186809]
[1767512543248,5.45744282,134.09,134.05,0.05186809]
[1767512543454,6.7147,134.1,134.05,0.05186809]
[1767512543653,5.45569566,134.09,134.05,0.05186809]
[1767512543855,6.7147,134.1,134.05,0.05186809]
[1767512544148,5.51139964,134.09,134.05,0.05186809]
[1767512544353,0.05570398,134.09,134.05,0.05186809]
[1767512545856,0.05570398,134.09,134.05,1.69036264]
[1767512549567,18.79878336,134.11,134.05,1.69036264]
[1767512550367,25.51288336,134.11,134.05,1.69036264]
[1767512550566,18.79878336,134.11,134.05,1.69036264]
[1767512551374,6.715,134.09,134.05,1.69036264]
[1767512551573,6.76739996,134.09,134.05,1.69036264]
[1767512554065,0.05239996,134.09,134.05,1.69036264]
[1767512567075,0.05239996,134.09,134.05,0.05186809]
[1767512567777,6.76749996,134.09,134.05,0.05186809]
[1767512571676,6.76749996,134.09,134.05,1.74318776]
[1767512571677,0.05239996,134.09,134.05,1.74318776]
[1767512572283,0.05239996,134.09,134.05,0.05186809]
[1767512573486,6.76739996,134.09,134.05,0.05186809]
[1767512576083,0.05239996,134.09,134.05,1.70143943]
[1767512579092,7.48511052,134.08,134.02,1.64957134]
[1767512579392,6.7155,134.08,134.02,1.64957134]
[1767512580291,0.0500656,134.06,134.04,0.04869132]
[1767512581790,25.51308336,134.11,134.04,1.67028106]
[1767512582093,5.45179781,134.1,134.04,1.67028106]
[1767512582397,5.45179781,134.09,134.04,1.67028106]
[1767512582885,0.04781281,134.08,134.04,1.67028106]
[1767512601005,26.28269388,134.11,134.04,1.67028106]
[1767512602108,0.0559106,134.09,134.04,1.67028106]
[1767512602507,25.51308336,134.11,134.05,1.62158974]
[1767512603610,0.02741103,134.09,134.05,1.62158974]
[1767512611220,0.02741103,134.09,134.05,8.33838974]
[1767512611414,0.02741103,134.09,134.06,1.64895733]
[1767512611815,18.79878336,134.11,134.06,1.64895733]
[1767512612918,18.79878336,134.11,134.07,1.69332006]
[1767512617818,18.79878336,134.11,134.07,0.04868167]
[1767512621821,18.79878336,134.11,134.07,1.69332006]
[1767512651258,5.45691033,134.1,134.07,1.69332006]
[1767512651457,18.79878336,134.11,134.07,1.69332006]
[1767512651659,5.45694269,134.1,134.07,0.04868167]
[1767512651959,18.79878336,134.11,134.07,0.04868167]
[1767512652160,5.45694269,134.1,134.07,0.04868167]
[1767512652361,18.79878336,134.11,134.07,0.04868167]
[1767512652563,5.45736969,134.1,134.07,0.04868167]
[1767512652757,18.79878336,134.11,134.07,0.04868167]
[1767512653057,5.45736969,134.1,134.07,0.04868167]
[1767512653258,18.79878336,134.11,134.07,0.04868167]
[1767512653457,5.45751258,134.1,134.07,0.04868167]
[1767512653653,18.79878336,134.11,134.07,6.76458167]
[1767512663674,18.49335014,134.11,134.07,8.44104431]
[1767512669875,17.34217006,134.11,134.08,8.39176264]
[1767512670075,17.34217006,134.11,134.08,1.67646264]
[1767512670076,7.006e-05,134.11,134.08,1.67646264]
[1767512670869,7.006e-05,134.11,134.09,6.7147]
[1767512676479,7.006e-05,134.11,134.09,8.41633493]
[1767512676787,88.12,134.17,134.1,8.41593493]
[1767512677086,5.44406489,134.16,134.12,0.05285995]
[1767512677286,5.44406489,134.15,134.12,0.05285995]
[1767512677484,88.12,134.17,134.12,0.05285995]
[1767512677686,5.44338024,134.16,134.12,0.05285995]
[1767512677891,5.44338024,134.15,134.12,0.05285995]
[1767512678084,6.7114,134.16,134.12,0.05285995]
[1767512678283,5.44338024,134.15,134.12,0.05285995]
[1767512678481,6.7114,134.16,134.12,0.05285995]
[1767512678685,5.44280711,134.15,134.12,0.05285995]
[1767512678989,6.7114,134.16,134.12,0.05285995]
[1767512679188,5.44280711,134.15,134.12,0.05285995]
[1767512679389,6.7114,134.16,134.12,0.05285995]
[1767512679588,5.4423225,134.15,134.12,0.05285995]
[1767512679788,6.7114,134.16,134.12,0.05285995]
[1767512680095,5.4423225,134.15,134.12,0.05285995]
[1767512680290,6.7114,134.16,134.12,0.05285995]